fUSD/lending_fUSD_20240520
["ID","MTS","AMOUNT","RATE_DAILY","PERIOD"]
[327587019,1716245491980,-1764.94,0.00039178,6]
[327587020,1716245491989,-500.0,0.00039178,6]
[327587021,1716245491999,-556.65266394,0.00039178,6]
[327587022,1716245492008,-500.0,0.00039178,6]
[327587023,1716245492022,-500.0,0.00039178,6]
[327587024,1716245492032,-5927.85,0.00039178,6]
[327587025,1716245492043,-811.91,0.00039178,6]
[327587026,1716245492053,-500.0,0.00039178,6]
[327587027,1716245492063,-1987.01,0.00039178,6]
[327587028,1716245492073,-693.3,0.00039178,6]
[327587029,1716245492084,-500.0,0.00039178,6]
[327587030,1716245492094,-500.0,0.00039178,6]
[327587031,1716245492397,-1541.83,0.00039178,6]
[327587032,1716245492407,-500.0,0.00039178,6]
[327587033,1716245492417,-500.0,0.00039178,6]
[327587034,1716245492426,-500.0,0.00039178,6]
[327587035,1716245492435,-500.0,0.00039178,7]
[327587036,1716245492445,-1597.12,0.00039178,6]
[327587037,1716245492454,-4898.33,0.00039178,6]
[327587038,1716245492463,-967.86,0.00039178,6]
[327587039,1716245492472,-500.0,0.00039178,6]
[327587040,1716245492482,-5026.25,0.00039178,6]
[327587041,1716245492491,-500.0,0.00039178,6]
[327587042,1716245492500,-500.0,0.00039178,6]
[327587043,1716245492509,-1796.9,0.00039178,6]
[327587044,1716245492521,-505.81,0.00039178,6]
[327587045,1716245492530,-500.0,0.00039178,6]
[327587046,1716245492539,-500.0,0.00039178,6]
[327587047,1716245492549,-500.0,0.00039178,6]
[327587048,1716245492558,-500.0,0.00039178,6]
[327587049,1716245492567,-500.0,0.00039178,6]
[327587050,1716245492576,-622.79,0.00039178,6]
[327587051,1716245492586,-500.0,0.00039178,6]
[327587052,1716245492595,-3209.36,0.00039178,6]
[327587053,1716245492604,-500.0,0.00039178,6]
[327587054,1716245492614,-500.0,0.00039178,6]
[327587055,1716245492624,-548.48,0.00039178,6]
[327587056,1716245492634,-500.0,0.00039178,6]
[327587057,1716245492644,-2753.14,0.00039178,6]
[327587058,1716245492654,-500.0,0.00039178,6]
[327587059,1716245492663,-16281.11,0.00039178,6]
[327587060,1716245492673,-500.0,0.00039178,6]
[327587061,1716245492682,-500.0,0.00039178,6]
[327587062,1716245492692,-577.78,0.00039178,6]
[327587063,1716245492702,-2053.11,0.00039178,6]
[327587064,1716245492711,-918.45,0.00039178,6]
[327587065,1716245492720,-1321.39,0.00039178,6]
[327587066,1716245492729,-258.71860669,0.00039178,6]
[327587067,1716245492738,-1326.66,0.00039178,6]
[327587068,1716245492748,-567.32,0.00039178,6]
[327587069,1716245492757,-751.58,0.00039178,6]
[327587070,1716245492769,-500.0,0.00039178,6]
[327587071,1716245492778,-513.36,0.00039178,6]
[327587072,1716245492787,-1026.69,0.00039178,6]
[327587073,1716245492797,-2532.84,0.00039178,6]
[327587074,1716245492806,-500.0,0.00039178,6]
[327587075,1716245492816,-603.39721495,0.00039178,6]
[327587076,1716245492826,-2101.19,0.00039178,6]
[327587077,1716245492835,-592.89,0.00039178,6]
[327587078,1716245492844,-1055.63,0.00039178,6]
[327587079,1716245492853,-570.68,0.00039178,6]
[327587080,1716245492863,-620.38,0.00039178,6]
[327587081,1716245492872,-3413.59,0.00039178,6]
[327587082,1716245492886,-500.0,0.00039178,6]
[327587083,1716245492897,-500.0,0.00039178,6]
[327587084,1716245492906,-740.56,0.00039178,6]
[327587085,1716245492915,-504.06,0.00039178,6]
[327587086,1716245492927,-1942.18,0.00039178,6]
[327587087,1716245492936,-1251.93,0.00039178,6]
[327587088,1716245492945,-30429.05,0.00039178,6]
[327587089,1716245492955,-500.0,0.00039178,2]
[327587090,1716245492965,-630.83,0.00039178,6]
[327587091,1716245492975,-500.0,0.00039178,6]
[327587092,1716245492984,-1844.18,0.00039178,6]
[327587093,1716245492994,-815.91,0.00039178,6]
[327587094,1716245493004,-500.0,0.00039178,6]
[327587095,1716245493014,-748.28,0.00039178,6]
[327587096,1716245493027,-500.0,0.00039178,6]
[327587097,1716245493037,-500.0,0.00039178,6]
[327587098,1716245493047,-3772.16,0.00039178,6]
[327587099,1716245493056,-500.0,0.00039178,6]
[327587100,1716245493066,-500.0,0.00039178,6]
[327587101,1716245493076,-500.0,0.00039178,6]
[327587102,1716245493086,-901.56,0.00039178,6]
[327587103,1716245493095,-2815.44,0.00039178,6]
[327587104,1716245493105,-804.6,0.00039178,6]
[327587105,1716245493115,-500.0,0.00039178,6]
[327587106,1716245493124,-500.0,0.00039178,6]
[327587107,1716245493133,-13987.25,0.00039178,6]
[327587108,1716245493143,-1053.44,0.00039178,6]
[327587109,1716245493152,-699.25,0.00039178,6]
[327587110,1716245493162,-751.67,0.00039178,6]
[327587111,1716245493171,-500.0,0.00039178,6]
[327587112,1716245493181,-500.0,0.00039178,6]
[327587113,1716245493190,-1918.99,0.00039178,6]
[327587114,1716245493200,-4140.85,0.00039178,6]
[327587115,1716245493210,-997.22,0.00039178,6]
[327587116,1716245493219,-500.0,0.00039178,6]
[327587117,1716245493229,-500.0,0.00039178,6]
[327587118,1716245493238,-3236.59,0.00039178,6]
[327587119,1716245493248,-540.37541693,0.00039178,6]
[327587120,1716245493258,-2582.59,0.00039178,6]
[327587121,1716245493268,-500.0,0.00039178,6]
[327587122,1716245493278,-613.44,0.00039178,6]
[327587123,1716245493287,-2877.6,0.00039178,6]
[327587124,1716245493296,-500.0,0.00039178,6]
[327587125,1716245493305,-595.4,0.00039178,6]
[327587126,1716245493315,-1530.58,0.00039178,6]
[327587127,1716245493324,-3378.14,0.00039178,6]
[327587128,1716245493334,-500.0,0.00039178,6]
[327587129,1716245493343,-500.0,0.00039178,6]
[327587130,1716245493353,-938.82,0.00039178,6]
[327587131,1716245493362,-500.0,0.00039178,6]
[327587132,1716245493371,-500.0,0.00039178,6]
[327587133,1716245493381,-500.0,0.00039178,6]
[327587134,1716245493390,-500.0,0.00039178,6]
[327587135,1716245493400,-1615.98,0.00039178,6]
[327587136,1716245493409,-500.0,0.00039178,6]
[327587137,1716245493419,-8193.08,0.00039178,6]
[327587138,1716245493429,-537.56511059,0.00039178,6]
[327587139,1716245493438,-500.67,0.00039178,6]
[327587140,1716245493448,-19028.04,0.00039178,6]
[327587141,1716245493457,-893.96,0.00039178,6]
[327587142,1716245493467,-500.0,0.00039178,6]
[327587143,1716245493476,-575.4,0.00039178,6]
[327587144,1716245493486,-500.0,0.00039178,6]
[327587145,1716245493495,-2645.07,0.00039178,6]
[327587146,1716245493505,-500.0,0.00039178,6]
[327587147,1716245493514,-2985.62,0.00039178,6]
[327587148,1716245493526,-14091.29,0.00039178,6]
[327587149,1716245493536,-500.0,0.00039178,6]
[327587150,1716245493545,-3314.39,0.00039178,6]
[327587151,1716245493554,-500.0,0.00039178,6]
[327587152,1716245493563,-3347.33,0.00039178,6]
[327587153,1716245493574,-722.13,0.00039178,6]
[327587154,1716245493585,-500.0,0.00039178,6]
[327587155,1716245493595,-740.24,0.00039178,6]
[327587156,1716245493605,-500.0,0.00039178,6]
[327587157,1716245493616,-500.0,0.00039178,6]
[327587158,1716245493625,-500.0,0.00039178,6]
[327587159,1716245493636,-1982.85,0.00039178,6]
[327587160,1716245493647,-1682.03,0.00039178,6]
[327587161,1716245493656,-3691.86,0.00039178,6]
[327587162,1716245493668,-4880.13,0.00039178,6]
[327587163,1716245493678,-525.04,0.00039178,6]
[327587164,1716245493690,-500.0,0.00039178,6]
[327587165,1716245493700,-3316.89,0.00039178,6]
[327587166,1716245493712,-5016.87,0.00039178,6]
[327587167,1716245493721,-4678.75,0.00039178,6]
[327587168,1716245493731,-550.28,0.00039178,6]
[327587169,1716245493740,-500.0,0.00039178,6]
[327587170,1716245493752,-538.37,0.00039178,6]
[327587171,1716245493761,-500.0,0.00039178,6]
[327587172,1716245493772,-500.0,0.00039178,6]
[327587173,1716245493781,-500.0,0.00039178,6]
[327587174,1716245493790,-500.0,0.00039178,6]
[327587175,1716245493799,-1691.03,0.00039178,6]
[327587176,1716245493808,-500.0,0.00039178,6]
[327587177,1716245493817,-532.03,0.00039178,6]
[327587178,1716245493826,-500.0,0.00039178,6]
[327587179,1716245493835,-500.0,0.00039178,6]
[327587180,1716245493844,-2062.0,0.00039178,6]
[327587181,1716245493853,-1235.65,0.00039178,6]
[327587182,1716245493862,-2558.3,0.00039178,6]
[327587183,1716245493871,-2062.15,0.00039178,6]
[327587184,1716245493884,-579.72,0.00039178,6]
[327587185,1716245493896,-164.98,0.00039178,6]
[327587186,1716245493905,-8337.52,0.00039178,6]
[327587187,1716245493915,-2315.84,0.00039178,6]
[327587188,1716245493926,-500.0,0.00039178,6]
[327587189,1716245493936,-973.13,0.00039178,6]
[327587190,1716245493945,-500.0,0.00039178,6]
[327587191,1716245493954,-500.0,0.00039178,6]
[327587192,1716245493965,-500.0,0.00039178,6]
[327587193,1716245493974,-500.0,0.00039178,6]
[327587194,1716245493984,-1471.56,0.00039178,6]
[327587195,1716245493994,-1132.99,0.00039178,6]
[327587196,1716245494004,-854.29,0.00039178,6]
[327587197,1716245494013,-263.24511201,0.00039178,6]
[327587198,1716245494024,-2469.6,0.00039178,6]
[327587199,1716245494033,-1951.27,0.00039178,6]
[327587200,1716245494042,-674.42,0.00039178,6]
[327587201,1716245494052,-689.39,0.00039178,6]
[327587202,1716245494062,-1671.12,0.00039178,6]
[327587203,1716245494071,-500.0,0.00039178,6]
[327587204,1716245494080,-3317.8,0.00039178,6]
[327587205,1716245494090,-500.0,0.00039178,6]
[327587206,1716245494100,-585.82418679,0.00039178,6]
[327587207,1716245494109,-663.65,0.00039178,6]
[327587208,1716245494118,-500.0,0.00039178,6]
[327587209,1716245494128,-2201.17,0.00039178,6]
[327587210,1716245494137,-2634.35,0.00039178,6]
[327587211,1716245494146,-500.0,0.00039178,6]
[327587212,1716245494155,-500.0,0.00039178,6]
[327587213,1716245494164,-500.0,0.00039178,6]
[327587214,1716245494174,-5000.0,0.00039178,6]
[327587215,1716245494183,-1912.42,0.00039178,6]
[327587216,1716245494192,-500.0,0.00039178,6]
[327587217,1716245494202,-988.93,0.00039178,6]
[327587218,1716245494211,-511.73,0.00039178,6]
[327587219,1716245494220,-665.78,0.00039178,6]
[327587220,1716245494230,-15236.32,0.00039178,6]
[327587221,1716245494239,-2813.24,0.00039178,6]
[327587222,1716245494248,-4733.21,0.00039178,6]
[327587223,1716245494257,-609.27,0.00039178,6]
[327587224,1716245494268,-500.0,0.00039178,6]
[327587225,1716245494277,-832.91,0.00039178,6]
[327587226,1716245494289,-717.45,0.00039178,6]
[327587227,1716245494298,-500.0,0.00039178,6]
[327587228,1716245494307,-2795.48,0.00039178,6]
[327587229,1716245494317,-2440.61,0.00039178,6]
[327587230,1716245494326,-781.81,0.00039178,6]
[327587231,1716245494335,-995.68,0.00039178,6]
[327587232,1716245494344,-1005.43,0.00039178,6]
[327587233,1716245494354,-656.76,0.00039178,6]
[327587234,1716245494364,-1373.96,0.00039178,6]
[327587235,1716245494375,-11657.41,0.00039178,6]
[327587236,1716245494384,-2170.99,0.00039178,6]
[327587237,1716245494393,-766.1,0.00039178,6]
[327587238,1716245494402,-1454.32,0.00039178,6]
[327587239,1716245494411,-3882.68,0.00039178,6]
[327587240,1716245494421,-1168.91,0.00039178,6]
[327587241,1716245494430,-745.77,0.00039178,6]
[327587242,1716245494439,-500.0,0.00039178,6]
[327587243,1716245494448,-500.0,0.00039178,6]
[327587244,1716245494457,-976.25,0.00039178,6]
[327587245,1716245494466,-2055.27,0.00039178,6]
[327587246,1716245494475,-508.19,0.00039178,6]
[327587247,1716245494484,-1395.0,0.00039178,6]
[327587248,1716245494493,-2845.6,0.00039178,6]
[327587249,1716245494503,-500.0,0.00039178,6]
[327587250,1716245494512,-3580.22,0.00039178,6]
[327587251,1716245494522,-541.47,0.00039178,6]
[327587252,1716245494531,-500.0,0.00039178,6]
[327587253,1716245494540,-1044.04,0.00039178,6]
[327587254,1716245494551,-500.0,0.00039178,6]
[327587255,1716245494561,-500.0,0.00039178,6]
[327587256,1716245494570,-500.0,0.00039178,6]
[327587257,1716245494579,-3464.86,0.00039178,6]
[327587258,1716245494588,-935.41,0.00039178,6]
[327587259,1716245494597,-500.0,0.00039178,6]
[327587260,1716245494606,-7097.57,0.00039178,6]
[327587261,1716245494615,-795.99,0.00039178,6]
[327587262,1716245494624,-776.51,0.00039178,6]
[327587263,1716245494634,-3710.87,0.00039178,6]
[327587264,1716245494643,-500.0,0.00039178,6]
[327587265,1716245494652,-2092.89,0.00039178,6]
[327587266,1716245494661,-350.11877388,0.00039178,6]
[327587267,1716245494670,-563.43,0.00039178,6]
[327587268,1716245494679,-1088.81,0.00039178,6]
[327587269,1716245494688,-781.29,0.00039178,6]
[327587270,1716245494697,-544.5919746,0.00039178,6]
[327587271,1716245494707,-694.72,0.00039178,6]
[327587272,1716245494716,-1685.88,0.00039178,6]
[327587273,1716245494725,-500.0,0.00039178,6]
[327587274,1716245494735,-798.13,0.00039178,6]
[327587275,1716245494744,-500.0,0.00039178,6]
[327587276,1716245494753,-1608.69,0.00039178,6]
[327587277,1716245494762,-708.39,0.00039178,6]
[327587278,1716245494772,-500.0,0.00039178,6]
[327587279,1716245494781,-9665.93,0.00039178,6]
[327587280,1716245494790,-544.69,0.00039178,6]
[327587281,1716245494799,-2718.3,0.00039178,6]
[327587282,1716245494809,-1873.61,0.00039178,6]
[327587283,1716245494819,-8197.4,0.00039178,6]
[327587284,1716245494830,-562.5,0.00039178,6]
[327587285,1716245494839,-620.5,0.00039178,6]
[327587286,1716245494849,-553.88,0.00039178,6]
[327587287,1716245494858,-500.0,0.00039178,6]
[327587288,1716245494867,-801.95,0.00039178,6]
[327587289,1716245494880,-724.18,0.00039178,6]
[327587290,1716245494893,-500.0,0.00039178,6]
[327587291,1716245494903,-500.0,0.00039178,6]
[327587292,1716245494914,-500.0,0.00039178,6]
[327587293,1716245494924,-2543.81,0.00039178,6]
[327587294,1716245494934,-1033.4,0.00039178,6]
[327587295,1716245494945,-500.0,0.00039178,6]
[327587296,1716245494956,-2378.19,0.00039178,6]
[327587297,1716245494966,-4055.39,0.00039178,6]
[327587298,1716245494976,-500.0,0.00039178,6]
[327587299,1716245494985,-500.0,0.00039178,6]
[327587300,1716245494994,-753.12,0.00039178,6]
[327587301,1716245495004,-512.27,0.00039178,6]
[327587302,1716245495013,-500.0,0.00039178,6]
[327587303,1716245495024,-500.0,0.00039178,6]
[327587304,1716245495033,-500.0,0.00039178,6]
[327587305,1716245495042,-500.0,0.00039178,6]
[327587306,1716245495052,-500.0,0.00039178,6]
[327587307,1716245495061,-1731.01,0.00039178,6]
[327587308,1716245495070,-3283.48,0.00039178,6]
[327587309,1716245495079,-1164.4,0.00039178,6]
[327587310,1716245495088,-793.07,0.00039178,6]
[327587311,1716245495098,-1438.11,0.00039178,6]
[327587312,1716245495107,-500.0,0.00039178,6]
[327587313,1716245495115,-4621.16,0.00039178,6]
[327587314,1716245495124,-500.0,0.00039178,6]
[327587315,1716245495133,-500.0,0.00039178,6]
[327587316,1716245495142,-956.45,0.00039178,6]
[327587317,1716245495151,-23727.62,0.00039178,6]
[327587318,1716245495160,-500.0,0.00039178,6]
[327587319,1716245495169,-4348.62,0.00039178,6]
[327587320,1716245495179,-1289.66,0.00039178,6]
[327587321,1716245495188,-1604.13,0.00039178,6]
[327587322,1716245495197,-500.0,0.00039178,6]
[327587323,1716245495206,-500.0,0.00039178,6]
[327587324,1716245495215,-180.57908926,0.00039178,6]
[327587325,1716245495224,-4068.0,0.00039178,6]
[327587326,1716245495234,-500.0,0.00039178,6]
[327587327,1716245495243,-826.66,0.00039178,6]
[327587328,1716245495253,-1475.24,0.00039178,6]
[327587329,1716245495262,-500.0,0.00039178,6]
[327587330,1716245495273,-635.01,0.00039178,6]
[327587331,1716245495282,-500.0,0.00039178,6]
[327587332,1716245495291,-506.13,0.00039178,6]
[327587333,1716245495300,-500.0,0.00039178,6]
[327587334,1716245495310,-987.32,0.00039178,6]
[327587335,1716245495319,-1648.74,0.00039178,6]
[327587336,1716245495328,-1446.75,0.00039178,6]
[327587337,1716245495337,-2956.33,0.00039178,6]
[327587338,1716245495346,-3342.78,0.00039178,6]
[327587339,1716245495355,-10264.95,0.00039178,6]
[327587340,1716245495364,-500.0,0.00039178,6]
[327587341,1716245495373,-500.0,0.00039178,6]
[327587342,1716245495382,-1242.39,0.00039178,6]
[327587343,1716245495392,-500.0,0.00039178,6]
[327587344,1716245495401,-2571.94,0.00039178,6]
[327587345,1716245495410,-500.0,0.00039178,6]
[327587346,1716245495421,-500.0,0.00039178,6]
[327587347,1716245495430,-1108.44,0.00039178,6]
[327587348,1716245495439,-559.52,0.00039178,6]
[327587349,1716245495448,-500.0,0.00039178,6]
[327587350,1716245495458,-500.0,0.00039178,6]
[327587351,1716245495467,-500.0,0.00039178,6]
[327587352,1716245495476,-3546.39,0.00039178,6]
[327587353,1716245495486,-2449.3,0.00039178,6]
[327587354,1716245495495,-500.0,0.00039178,6]
[327587355,1716245495505,-500.0,0.00039178,6]
[327587356,1716245495514,-3624.52,0.00039178,6]
[327587357,1716245495525,-510.30885242,0.00039178,6]
[327587358,1716245495535,-337.3203854,0.00039178,6]
[327587359,1716245495544,-4260.57,0.00039178,6]
[327587360,1716245495554,-500.0,0.00039178,6]
[327587361,1716245495563,-500.0,0.00039178,6]
[327587362,1716245495572,-500.0,0.00039178,6]
[327587363,1716245495581,-500.0,0.00039178,6]
[327587364,1716245495591,-500.0,0.00039178,6]
[327587365,1716245495600,-500.0,0.00039178,6]
[327587366,1716245495610,-500.0,0.00039178,6]
[327587367,1716245495620,-500.0,0.00039178,6]
[327587368,1716245495631,-967.27,0.00039178,6]
[327587369,1716245495642,-501.97174156,0.00039178,6]
[327587370,1716245495654,-500.0,0.00039178,6]
[327587371,1716245495664,-1904.42,0.00039178,6]
[327587372,1716245495674,-500.0,0.00039178,6]
[327587373,1716245495684,-3444.31,0.00039178,6]
[327587374,1716245495694,-1926.38,0.00039178,6]
[327587375,1716245495704,-500.0,0.00039178,6]
[327587376,1716245495714,-526.39788524,0.00039178,6]
[327587377,1716245495724,-2532.03,0.00039178,6]
[327587378,1716245495733,-1475.47,0.00039178,6]
[327587379,1716245495742,-6190.15,0.00039178,6]
[327587380,1716245495752,-500.0,0.00039178,6]
[327587381,1716245495761,-500.0,0.00039178,6]
[327587382,1716245495771,-500.0,0.00039178,6]
[327587383,1716245495781,-532.62,0.00039178,6]
[327587384,1716245495790,-500.0,0.00039178,2]
[327587385,1716245495800,-500.0,0.00039178,6]
[327587386,1716245495809,-500.0,0.00039178,6]
[327587387,1716245495818,-3503.43,0.00039178,6]
[327587388,1716245495829,-1303.91,0.00039178,6]
[327587389,1716245495838,-500.0,0.00039178,6]
[327587390,1716245495847,-500.0,0.00039178,2]
[327587391,1716245495858,-1335.44,0.00039178,6]
[327587392,1716245495869,-882.81,0.00039178,6]
[327587393,1716245495884,-597.4,0.00039178,6]
[327587394,1716245495893,-12418.64,0.00039178,6]
[327587395,1716245495904,-500.0,0.00039178,6]
[327587396,1716245495913,-1919.82,0.00039178,6]
[327587397,1716245496130,-2545.17,0.00039178,6]
[327587398,1716245496142,-500.0,0.00039178,6]
[327587399,1716245496151,-500.0,0.00039178,6]
[327587400,1716245496161,-500.0,0.00039178,6]
[327587401,1716245496170,-500.0,0.00039178,6]
[327587402,1716245496180,-3116.86,0.00039178,6]
[327587403,1716245496190,-705.41,0.00039178,6]
[327587404,1716245496201,-1186.94,0.00039178,6]
[327587405,1716245496211,-1773.68,0.00039178,6]
[327587406,1716245496221,-500.0,0.00039178,6]
[327587407,1716245496229,-500.0,0.00039178,6]
[327587408,1716245496239,-4158.59,0.00039178,6]
[327587409,1716245496249,-500.0,0.00039178,6]
[327587410,1716245496259,-601.97,0.00039178,6]
[327587411,1716245496270,-536.0,0.00039178,6]
[327587412,1716245496279,-500.0,0.00039178,6]
[327587413,1716245496288,-4818.5,0.00039178,6]
[327587414,1716245496297,-2177.47,0.00039178,6]
[327587415,1716245496306,-3916.13,0.00039178,6]
[327587416,1716245496315,-500.0,0.00039178,6]
[327587417,1716245496324,-586.96,0.00039178,6]
[327587418,1716245496333,-1879.68,0.00039178,6]
[327587419,1716245496342,-500.0,0.00039178,6]
[327587420,1716245496353,-501.81,0.00039178,6]
[327587421,1716245496363,-500.0,0.00039178,6]
[327587422,1716245496375,-500.0,0.00039178,6]
[327587423,1716245496386,-8194.37,0.00039178,6]
[327587424,1716245496395,-500.0,0.00039178,6]
[327587425,1716245496405,-1181.54,0.00039178,6]
[327587426,1716245496414,-520.8,0.00039178,6]
[327587427,1716245496423,-500.0,0.00039178,6]
[327587428,1716245496433,-500.0,0.00039178,6]
[327587429,1716245496443,-500.0,0.00039178,6]
[327587430,1716245496453,-500.0,0.00039178,6]
[327587431,1716245496462,-195.66,0.000392,7]
[327587432,1716245496471,-1500.0,0.00039204,2]
[327587433,1716245496480,-150.0,0.00039212,2]
[327587434,1716245496489,-359.33756804,0.00039215,2]
[327587435,1716245496499,-150.0,0.00039225,2]
[327587436,1716245496508,-150.0,0.0003923,2]
[327587437,1716245496518,-400.0,0.00039234,31]
[327587438,1716245496527,-150.0,0.00039261,2]
[327587439,1716245496536,-150.0,0.00039283,2]
[327587440,1716245496546,-150.0,0.00039285,120]
[327587441,1716245496555,-300.0,0.00039299,2]
[327587442,1716245496564,-171.4,0.000393,7]
[327587443,1716245496574,-150.0,0.000393,10]
[327587444,1716245496583,-150.0,0.00039316,2]
[327587445,1716245496593,-1200.52284913,0.00039324,2]
[327587446,1716245496602,-800.0,0.00039334,2]
[327587447,1716245496611,-150.0,0.00039343,2]
[327587448,1716245496620,-686.66622883,0.00039352,7]
[327587449,1716245496630,-686.66622883,0.00039352,7]
[327587450,1716245496639,-686.66622883,0.00039352,7]
[327587451,1716245496649,-686.66622883,0.00039352,7]
[327587452,1716245496659,-686.66622883,0.00039352,7]
[327587453,1716245496668,-686.66622883,0.00039352,7]
[327587454,1716245496677,-686.66622883,0.00039352,7]
[327587455,1716245496687,-686.66622883,0.00039352,7]
[327587456,1716245496696,-686.66622883,0.00039352,7]
[327587457,1716245496706,-686.66622883,0.00039352,7]
[327587458,1716245496715,-686.66622883,0.00039352,7]
[327587459,1716245496725,-686.66622883,0.00039352,7]
[327587460,1716245496734,-686.66622883,0.00039352,7]
[327587461,1716245496743,-686.66622883,0.00039352,7]
[327587462,1716245496753,-686.66622883,0.00039352,7]
[327587463,1716245496762,-686.66622883,0.00039352,7]
[327587464,1716245496773,-686.66622883,0.00039352,7]
[327587465,1716245496782,-686.66622883,0.00039352,7]
[327587466,1716245496791,-686.66622883,0.00039352,7]
[327587467,1716245496800,-687.16,0.00039352,7]
[327587468,1716245496810,-2746.73991532,0.00039352,7]
[327587469,1716245496820,-2746.73991532,0.00039352,7]
[327587470,1716245496830,-2746.73991532,0.00039352,7]
[327587471,1716245496840,-2746.73991532,0.00039352,7]
[327587472,1716245496850,-2746.73991532,0.00039352,7]
[327587473,1716245496860,-2746.73991532,0.00039352,7]
[327587474,1716245496869,-2746.73991532,0.00039352,7]
[327587475,1716245496879,-2746.73991532,0.00039352,7]
[327587476,1716245496893,-2746.73991532,0.00039352,7]
[327587477,1716245496903,-2746.73991532,0.00039352,7]
[327587478,1716245496912,-2746.73991532,0.00039352,7]
[327587479,1716245496923,-2746.73991532,0.00039352,7]
[327587480,1716245496932,-227.20181372,0.00039352,7]
[327587481,1716245496942,-227.20181372,0.00039352,7]
[327587482,1716245496951,-227.20181372,0.00039352,7]
[327587483,1716245496962,-227.20181372,0.00039352,7]
[327587484,1716245496974,-227.20181372,0.00039352,7]
[327587485,1716245496983,-227.20181372,0.00039352,7]
[327587486,1716245496993,-227.20181372,0.00039352,7]
[327587487,1716245497003,-227.20181372,0.00039352,7]
[327587488,1716245497013,-227.20181372,0.00039352,7]
[327587489,1716245497024,-227.20181372,0.00039352,7]
[327587490,1716245497034,-227.20181372,0.00039352,7]
[327587491,1716245497043,-227.20181372,0.00039352,7]
[327587492,1716245497052,-227.20181372,0.00039352,7]
[327587493,1716245497062,-227.20181372,0.00039352,7]
[327587494,1716245497072,-227.20181372,0.00039352,7]
[327587495,1716245497082,-227.20181372,0.00039352,7]
[327587496,1716245497092,-227.20181372,0.00039352,7]
[327587497,1716245497102,-227.20181372,0.00039352,7]
[327587498,1716245497111,-227.20181372,0.00039352,7]
[327587499,1716245497120,-227.7,0.00039352,7]
[327587500,1716245497130,-908.88225487,0.00039352,7]
[327587501,1716245497139,-908.88225487,0.00039352,7]
[327587502,1716245497149,-908.88225487,0.00039352,7]
[327587503,1716245497158,-908.88225487,0.00039352,7]
[327587504,1716245497168,-908.88225487,0.00039352,7]
[327587505,1716245497179,-908.88225487,0.00039352,7]
[327587506,1716245497188,-908.88225487,0.00039352,7]
[327587507,1716245497197,-908.88225487,0.00039352,7]
[327587508,1716245497207,-908.88225487,0.00039352,7]
[327587509,1716245497216,-908.88225487,0.00039352,7]
[327587510,1716245497225,-908.88225487,0.00039352,7]
[327587511,1716245497234,-908.88225487,0.00039352,7]
[327587512,1716245497243,-162.901474,0.00039352,7]
[327587513,1716245497252,-162.901474,0.00039352,7]
[327587514,1716245497261,-162.901474,0.00039352,7]
[327587515,1716245497272,-162.901474,0.00039352,7]
[327587516,1716245497281,-162.901474,0.00039352,7]
[327587517,1716245497291,-163.4,0.00039352,7]
[327587518,1716245497301,-195.5567688,0.00039352,7]